[Event "*** Titled Tuesday Blitz"]
[Site "Chess.com"]
[Date "2019.02.05"]
[Round "4"]
[White "gemarin"]
[Black "SolidAsARook"]
[Result "1-0"]
[WhiteElo "2089"]
[BlackElo "2178"]
[TimeControl "180+2"]
[EndTime "13:48:57 PST"]
[Termination "gemarin won by resignation"]

1. d4 {[%clk 0:03:01.9]} 1... f5 {[%clk 0:02:58.5]} 2. g3 {[%clk 0:02:59]} 2...
Nf6 {[%clk 0:02:59.2]} 3. Bg2 {[%clk 0:03:00.1]} 3... e6 {[%clk 0:03:00.5]} 4.
Nh3 {[%clk 0:02:58.1]} 4... d5 {[%clk 0:03:01.3]} 5. b3 {[%clk 0:02:55.7]} 5...
c6 {[%clk 0:02:56.7]} 6. O-O {[%clk 0:02:56]} 6... Bd6 {[%clk 0:02:52.8]} 7. Nd2
{[%clk 0:02:57]} 7... O-O {[%clk 0:02:53]} 8. Nf3 {[%clk 0:02:57.6]} 8... b6
{[%clk 0:02:53.8]} 9. Nf4 {[%clk 0:02:54.9]} 9... Qe8 {[%clk 0:02:48.6]} 10. c4
{[%clk 0:02:51.9]} 10... a5 {[%clk 0:02:48.7]} 11. Nd3 {[%clk 0:02:49.2]} 11...
Bb7 {[%clk 0:02:45.4]} 12. Nde5 {[%clk 0:02:46.4]} 12... a4 {[%clk 0:02:39.5]}
13. Bf4 {[%clk 0:02:39.5]} 13... Ba3 {[%clk 0:02:00.5]} 14. Qc2 {[%clk
0:02:36.3]} 14... Na6 {[%clk 0:01:52.6]} 15. Rab1 {[%clk 0:02:16.1]} 15... Nb4
{[%clk 0:01:48.6]} 16. Qd2 {[%clk 0:01:59.6]} 16... Ne4 {[%clk 0:01:41.3]} 17.
Qd1 {[%clk 0:01:56.7]} 17... Nc3 {[%clk 0:01:39.1]} 18. Qe1 {[%clk 0:01:57.8]}
18... Nbxa2 {[%clk 0:01:14.2]} 19. bxa4 {[%clk 0:01:51.9]} 19... Nxb1 {[%clk
0:00:46.7]} 20. Qxb1 {[%clk 0:01:51.3]} 20... Nc3 {[%clk 0:00:46.4]} 21. Qb3
{[%clk 0:01:52]} 21... Nxe2+ {[%clk 0:00:46]} 22. Kh1 {[%clk 0:01:32.3]} 22...
Bd6 {[%clk 0:00:34.6]} 23. Qxb6 {[%clk 0:01:31.3]} 23... Nxf4 {[%clk 0:00:21.8]}
24. gxf4 {[%clk 0:01:28.9]} 24... Qc8 {[%clk 0:00:18.6]} 25. c5 {[%clk
0:01:20.9]} 25... Bxe5 {[%clk 0:00:18.8]} 26. fxe5 {[%clk 0:01:15.5]} 26... Rxa4
{[%clk 0:00:19.7]} 27. Rb1 {[%clk 0:01:17.4]} 27... Ba6 {[%clk 0:00:20.1]} 28.
Qb3 {[%clk 0:01:06.1]} 28... Bb5 {[%clk 0:00:20.8]} 29. Ng5 {[%clk 0:01:04.9]}
29... Qe8 {[%clk 0:00:21.8]} 30. Qh3 {[%clk 0:00:56.2]} 30... h6 {[%clk
0:00:22.9]} 31. Nf3 {[%clk 0:00:57.5]} 31... Qg6 {[%clk 0:00:23.3]} 32. Rg1
{[%clk 0:00:56.7]} 32... Qf7 {[%clk 0:00:22.5]} 33. Bf1 {[%clk 0:00:56]} 33...
Kh7 {[%clk 0:00:23.6]} 34. Bxb5 {[%clk 0:00:55]} 34... cxb5 {[%clk 0:00:21.6]}
35. Ng5+ {[%clk 0:00:55.5]} 1-0

[Event "*** Titled Tuesday Blitz"]
[Site "Chess.com"]
[Date "2019.02.05"]
[Round "4"]
[White "minnesotachessmaster"]
[Black "AryanTari"]
[Result "0-1"]
[WhiteElo "2009"]
[BlackElo "2814"]
[TimeControl "180+2"]
[EndTime "13:48:58 PST"]
[Termination "AryanTari won by resignation"]

1. e4 {[%clk 0:02:59.7]} 1... e5 {[%clk 0:02:59]} 2. Nf3 {[%clk 0:02:57.4]} 2...
Nc6 {[%clk 0:03:00.2]} 3. Bb5 {[%clk 0:02:57.1]} 3... Nge7 {[%clk 0:02:58.6]} 4.
O-O {[%clk 0:02:57]} 4... a6 {[%clk 0:02:58.8]} 5. Ba4 {[%clk 0:02:57]} 5... g6
{[%clk 0:02:59.8]} 6. c3 {[%clk 0:02:54.2]} 6... Bg7 {[%clk 0:02:54.7]} 7. d4
{[%clk 0:02:54]} 7... exd4 {[%clk 0:02:55.7]} 8. cxd4 {[%clk 0:02:54.8]} 8... b5
{[%clk 0:02:57]} 9. Bb3 {[%clk 0:02:51.1]} 9... d6 {[%clk 0:02:53.8]} 10. h3
{[%clk 0:02:38.8]} 10... O-O {[%clk 0:02:52.8]} 11. Nc3 {[%clk 0:02:35.1]} 11...
Na5 {[%clk 0:02:54]} 12. Bc2 {[%clk 0:02:35.4]} 12... c5 {[%clk 0:02:55]} 13.
Be3 {[%clk 0:02:10.1]} 13... Nc4 {[%clk 0:02:54.7]} 14. b3 {[%clk 0:02:10.7]}
14... Nxe3 {[%clk 0:02:55.4]} 15. fxe3 {[%clk 0:02:11.5]} 15... Nc6 {[%clk
0:02:56.8]} 16. Qd2 {[%clk 0:02:00.4]} 16... Bb7 {[%clk 0:02:46.9]} 17. Rad1
{[%clk 0:01:49.9]} 17... Rc8 {[%clk 0:02:47.6]} 18. Bb1 {[%clk 0:01:39.3]} 18...
Ne7 {[%clk 0:02:41.6]} 19. Ne2 {[%clk 0:01:34.7]} 19... Qc7 {[%clk 0:02:20.4]}
20. Rc1 {[%clk 0:01:29.7]} 20... Qb6 {[%clk 0:02:13]} 21. Kh1 {[%clk 0:01:27.2]}
21... cxd4 {[%clk 0:02:10.1]} 22. exd4 {[%clk 0:01:26.9]} 22... Rxc1 {[%clk
0:02:07.3]} 23. Rxc1 {[%clk 0:01:27.3]} 23... Rc8 {[%clk 0:02:08.6]} 24. Rxc8+
{[%clk 0:01:27.2]} 24... Bxc8 {[%clk 0:02:10.5]} 25. d5 {[%clk 0:01:02.5]} 25...
Bd7 {[%clk 0:02:01]} 26. Ned4 {[%clk 0:01:02]} 26... b4 {[%clk 0:01:59.4]} 27.
Kh2 {[%clk 0:00:53.2]} 27... a5 {[%clk 0:01:59.8]} 28. Bc2 {[%clk 0:00:49.6]}
28... Qc5 {[%clk 0:02:00.5]} 29. Qd3 {[%clk 0:00:38.1]} 29... Nc8 {[%clk
0:01:52.7]} 30. Qd2 {[%clk 0:00:37]} 30... Nb6 {[%clk 0:01:53.3]} 31. Qd3 {[%clk
0:00:38]} 31... h6 {[%clk 0:01:54.4]} 32. Qd2 {[%clk 0:00:38.7]} 32... a4 {[%clk
0:01:49.7]} 33. Qd3 {[%clk 0:00:36.1]} 33... a3 {[%clk 0:01:48.5]} 34. Qd2
{[%clk 0:00:36.9]} 34... Na8 {[%clk 0:01:48]} 35. Qd3 {[%clk 0:00:34.2]} 35...
Nc7 {[%clk 0:01:49.2]} 36. Qd2 {[%clk 0:00:31.3]} 36... Nb5 {[%clk 0:01:50.4]}
37. Nxb5 {[%clk 0:00:31.3]} 37... Bxb5 {[%clk 0:01:52.3]} 38. Bd3 {[%clk
0:00:28.7]} 38... Bc3 {[%clk 0:01:46]} 39. Qe2 {[%clk 0:00:28]} 39... Bxd3
{[%clk 0:01:43.7]} 40. Qxd3 {[%clk 0:00:29.1]} 40... Qf2 {[%clk 0:01:45.1]} 41.
e5 {[%clk 0:00:21.9]} 41... Bxe5+ {[%clk 0:01:45]} 42. Nxe5 {[%clk 0:00:22.5]}
42... Qf4+ {[%clk 0:01:46.5]} 43. g3 {[%clk 0:00:13.1]} 43... Qxe5 {[%clk
0:01:42.2]} 44. Qd2 {[%clk 0:00:09.9]} 44... Qb2 {[%clk 0:01:44.1]} 0-1

[Event "*** Titled Tuesday Blitz"]
[Site "Chess.com"]
[Date "2019.02.05"]
[Round "4"]
[White "champ2005"]
[Black "x-5963514717"]
[Result "1-0"]
[WhiteElo "2598"]
[BlackElo "2452"]
[TimeControl "180+2"]
[EndTime "13:49:03 PST"]
[Termination "champ2005 won by resignation"]

1. b3 {[%clk 0:03:01.4]} 1... e5 {[%clk 0:03:00.4]} 2. Bb2 {[%clk 0:03:02.4]}
2... Nc6 {[%clk 0:03:01.7]} 3. e3 {[%clk 0:03:01.8]} 3... Nf6 {[%clk 0:03:01.4]}
4. Nf3 {[%clk 0:03:02.9]} 4... e4 {[%clk 0:02:58.5]} 5. Nd4 {[%clk 0:03:03.9]}
5... Bd6 {[%clk 0:02:55.9]} 6. d3 {[%clk 0:02:58.9]} 6... O-O {[%clk 0:02:55]}
7. Be2 {[%clk 0:02:57.3]} 7... Re8 {[%clk 0:02:50.9]} 8. O-O {[%clk 0:02:57.8]}
8... Nxd4 {[%clk 0:02:41.4]} 9. Bxd4 {[%clk 0:02:58.4]} 9... Be5 {[%clk
0:02:36.1]} 10. Bxe5 {[%clk 0:02:56.3]} 10... Rxe5 {[%clk 0:02:38]} 11. c4
{[%clk 0:02:55.8]} 11... exd3 {[%clk 0:02:36]} 12. Qxd3 {[%clk 0:02:56.5]} 12...
d6 {[%clk 0:02:36.6]} 13. Nc3 {[%clk 0:02:57.1]} 13... Bf5 {[%clk 0:02:35.4]}
14. Qd4 {[%clk 0:02:57.9]} 14... Qe7 {[%clk 0:02:33.5]} 15. Bf3 {[%clk 0:02:56]}
15... Be4 {[%clk 0:02:27.9]} 16. Nxe4 {[%clk 0:02:54.5]} 16... Nxe4 {[%clk
0:02:28.5]} 17. Rad1 {[%clk 0:02:49.5]} 17... Re8 {[%clk 0:02:28.8]} 18. Qxa7
{[%clk 0:02:47.8]} 18... b6 {[%clk 0:02:17.9]} 19. Bxe4 {[%clk 0:02:47.2]} 19...
Rxe4 {[%clk 0:02:18.8]} 20. Qb7 {[%clk 0:02:47.4]} 20... Qd7 {[%clk 0:01:49]}
21. Rd2 {[%clk 0:02:37.7]} 21... h5 {[%clk 0:01:47.4]} 22. Rfd1 {[%clk
0:02:31.3]} 22... h4 {[%clk 0:01:47.6]} 23. Rxd6 {[%clk 0:02:24]} 23... Qe7
{[%clk 0:01:37.1]} 24. Rd7 {[%clk 0:02:14.9]} 24... Qg5 {[%clk 0:01:27.6]} 25.
h3 {[%clk 0:02:00.9]} 25... c5 {[%clk 0:01:05.9]} 26. Qd5 {[%clk 0:01:56.7]}
26... R8e5 {[%clk 0:01:03]} 27. Qxf7+ {[%clk 0:01:53.2]} 27... Kh7 {[%clk
0:01:03.5]} 28. R7d5 {[%clk 0:01:50.3]} 28... Qh6 {[%clk 0:00:45.8]} 29. Rxe5
{[%clk 0:01:46.1]} 29... Rxe5 {[%clk 0:00:47.7]} 30. Rd5 {[%clk 0:01:47.1]}
30... Rxd5 {[%clk 0:00:32.1]} 31. Qxd5 {[%clk 0:01:41.9]} 31... Qf6 {[%clk
0:00:28.1]} 32. Qe4+ {[%clk 0:01:40.9]} 32... Kh8 {[%clk 0:00:25.7]} 33. a3
{[%clk 0:01:33.7]} 33... Kg8 {[%clk 0:00:21.3]} 34. b4 {[%clk 0:01:32.4]} 34...
Qa1+ {[%clk 0:00:21.7]} 35. Kh2 {[%clk 0:01:33.3]} 35... Qxa3 {[%clk 0:00:22.9]}
36. bxc5 {[%clk 0:01:34]} 36... Qxc5 {[%clk 0:00:23.3]} 37. Qxh4 {[%clk
0:01:33.1]} 37... g6 {[%clk 0:00:20]} 38. Qe4 {[%clk 0:01:27.7]} 38... Kg7
{[%clk 0:00:20.3]} 39. f4 {[%clk 0:01:28.4]} 39... b5 {[%clk 0:00:18.3]} 40.
cxb5 {[%clk 0:01:26.6]} 40... Qxb5 {[%clk 0:00:19]} 41. Qe5+ {[%clk 0:01:27.3]}
41... Qxe5 {[%clk 0:00:19.3]} 42. fxe5 {[%clk 0:01:29.2]} 42... Kf7 {[%clk
0:00:20.3]} 43. Kg3 {[%clk 0:01:30.8]} 43... Ke6 {[%clk 0:00:22.2]} 44. Kf4
{[%clk 0:01:31.9]} 1-0

[Event "*** Titled Tuesday Blitz"]
[Site "Chess.com"]
[Date "2019.02.05"]
[Round "4"]
[White "PowerThinking2650"]
[Black "Fy_Rakotomaharo"]
[Result "0-1"]
[WhiteElo "2251"]
[BlackElo "2476"]
[TimeControl "180+2"]
[EndTime "13:49:05 PST"]
[Termination "Fy_Rakotomaharo won by resignation"]

1. e4 {[%clk 0:03:01.9]} 1... c5 {[%clk 0:03:01]} 2. Nf3 {[%clk 0:02:58.4]} 2...
d6 {[%clk 0:03:02.4]} 3. Nc3 {[%clk 0:02:59.3]} 3... a6 {[%clk 0:03:01.5]} 4. g3
{[%clk 0:03:00]} 4... Nc6 {[%clk 0:02:58.2]} 5. Bg2 {[%clk 0:03:00.8]} 5... g6
{[%clk 0:02:59.8]} 6. O-O {[%clk 0:03:01.5]} 6... Bg7 {[%clk 0:03:01.3]} 7. a4
{[%clk 0:03:02.5]} 7... e5 {[%clk 0:02:59.3]} 8. Nd5 {[%clk 0:03:00]} 8... Nge7
{[%clk 0:03:00.2]} 9. c4 {[%clk 0:03:00.8]} 9... Bg4 {[%clk 0:02:59.1]} 10. h3
{[%clk 0:03:00.3]} 10... Bxf3 {[%clk 0:02:59.5]} 11. Bxf3 {[%clk 0:03:02.2]}
11... O-O {[%clk 0:03:00.1]} 12. d3 {[%clk 0:03:01.9]} 12... h6 {[%clk
0:02:47.2]} 13. h4 {[%clk 0:02:56.6]} 13... f5 {[%clk 0:02:46]} 14. h5 {[%clk
0:02:54.5]} 14... g5 {[%clk 0:02:44]} 15. exf5 {[%clk 0:02:55.4]} 15... Nxf5
{[%clk 0:02:42.9]} 16. Bg4 {[%clk 0:02:54.4]} 16... Ncd4 {[%clk 0:02:33.5]} 17.
Be3 {[%clk 0:02:51.8]} 17... b6 {[%clk 0:02:25.1]} 18. a5 {[%clk 0:02:44.8]}
18... bxa5 {[%clk 0:02:16.3]} 19. Bd2 {[%clk 0:02:44.6]} 19... Rb8 {[%clk
0:02:11.6]} 20. Bxa5 {[%clk 0:02:43.6]} 20... Qe8 {[%clk 0:02:12.2]} 21. Bc3
{[%clk 0:02:39.3]} 21... Rb7 {[%clk 0:01:52.2]} 22. Rxa6 {[%clk 0:02:36.1]}
22... Rbf7 {[%clk 0:01:53]} 23. Bxd4 {[%clk 0:02:27]} 23... Nxd4 {[%clk
0:01:50.7]} 24. Rxd6 {[%clk 0:02:22.7]} 24... e4 {[%clk 0:01:52]} 25. dxe4
{[%clk 0:01:13.3]} 25... Qe5 {[%clk 0:01:52.7]} 26. Rg6 {[%clk 0:00:28]} 26...
Kh8 {[%clk 0:01:53.5]} 27. Bf5 {[%clk 0:00:22.1]} 27... Nxf5 {[%clk 0:01:25.7]}
28. exf5 {[%clk 0:00:23.2]} 28... Rxf5 {[%clk 0:01:27]} 29. Ne3 {[%clk
0:00:21.2]} 29... Rxf2 {[%clk 0:01:15.4]} 30. Rxf2 {[%clk 0:00:16.7]} 30... Qxe3
{[%clk 0:01:16.6]} 31. Qf1 {[%clk 0:00:17.1]} 31... Bd4 {[%clk 0:01:10]} 32.
Rxh6+ {[%clk 0:00:17.5]} 32... Kg7 {[%clk 0:01:11.2]} 33. Rg6+ {[%clk
0:00:18.9]} 33... Kh7 {[%clk 0:01:12.7]} 34. Rc6 {[%clk 0:00:05.2]} 34... Qxg3+
{[%clk 0:01:10.7]} 0-1

[Event "*** Titled Tuesday Blitz"]
[Site "Chess.com"]
[Date "2019.02.05"]
[Round "4"]
[White "EugeneRougon"]
[Black "x-6099009240"]
[Result "1-0"]
[WhiteElo "2570"]
[BlackElo "2390"]
[TimeControl "180+2"]
[EndTime "13:49:10 PST"]
[Termination "EugeneRougon won by resignation"]

1. e4 {[%clk 0:03:01.9]} 1... c5 {[%clk 0:03:00.7]} 2. Nf3 {[%clk 0:03:02.8]}
2... d6 {[%clk 0:03:02.2]} 3. d4 {[%clk 0:03:04]} 3... cxd4 {[%clk 0:03:03.9]}
4. Nxd4 {[%clk 0:03:05.9]} 4... Nf6 {[%clk 0:03:05.3]} 5. Nc3 {[%clk 0:03:07.6]}
5... a6 {[%clk 0:03:06.5]} 6. Be3 {[%clk 0:03:08.4]} 6... e5 {[%clk 0:03:07.5]}
7. Nf3 {[%clk 0:03:10]} 7... Be7 {[%clk 0:03:07.6]} 8. Bc4 {[%clk 0:03:11.6]}
8... O-O {[%clk 0:03:07.5]} 9. O-O {[%clk 0:03:13.2]} 9... Nc6 {[%clk 0:03:09]}
10. Qe2 {[%clk 0:03:12.4]} 10... Na5 {[%clk 0:03:08.7]} 11. Bb3 {[%clk
0:03:11.9]} 11... Nxb3 {[%clk 0:03:10]} 12. axb3 {[%clk 0:03:10.9]} 12... h6
{[%clk 0:03:11.5]} 13. Rfd1 {[%clk 0:03:10.9]} 13... Qc7 {[%clk 0:03:12.7]} 14.
Nd2 {[%clk 0:02:39.2]} 14... Be6 {[%clk 0:03:04.2]} 15. Nc4 {[%clk 0:02:39.7]}
15... Nd7 {[%clk 0:02:30.3]} 16. f3 {[%clk 0:01:36.8]} 16... b5 {[%clk
0:02:29.6]} 17. Na5 {[%clk 0:01:36.8]} 17... Nf6 {[%clk 0:02:17.2]} 18. Nd5
{[%clk 0:01:30]} 18... Bxd5 {[%clk 0:02:04.6]} 19. exd5 {[%clk 0:01:31.9]} 19...
Nd7 {[%clk 0:02:01.5]} 20. c4 {[%clk 0:01:19]} 20... Bg5 {[%clk 0:02:01.9]} 21.
Bf2 {[%clk 0:01:14.3]} 21... Nc5 {[%clk 0:01:56.9]} 22. b4 {[%clk 0:01:14.1]}
22... Nb7 {[%clk 0:01:53.3]} 23. Nxb7 {[%clk 0:01:14.3]} 23... Qxb7 {[%clk
0:01:55.2]} 24. c5 {[%clk 0:01:16.2]} 24... f5 {[%clk 0:01:35.1]} 25. Ra3 {[%clk
0:01:04.6]} 25... dxc5 {[%clk 0:01:27.4]} 26. bxc5 {[%clk 0:01:05.2]} 26... b4
{[%clk 0:01:28.9]} 27. Ra5 {[%clk 0:00:52.6]} 27... Rfe8 {[%clk 0:01:04.8]} 28.
c6 {[%clk 0:00:49.2]} 28... Qc7 {[%clk 0:01:04.5]} 29. Rxa6 {[%clk 0:00:49.7]}
29... Rxa6 {[%clk 0:00:55.2]} 30. Qxa6 {[%clk 0:00:51.6]} 30... Qd6 {[%clk
0:00:56.2]} 31. Qc4 {[%clk 0:00:51.5]} 31... Be7 {[%clk 0:00:51]} 32. Rc1 {[%clk
0:00:30.7]} 32... Qc7 {[%clk 0:00:33.4]} 33. d6+ {[%clk 0:00:30.8]} 1-0

[Event "*** Titled Tuesday Blitz"]
[Site "Chess.com"]
[Date "2019.02.05"]
[Round "4"]
[White "VerdeNotte"]
[Black "metra93"]
[Result "1-0"]
[WhiteElo "2846"]
[BlackElo "2550"]
[TimeControl "180+2"]
[EndTime "13:49:14 PST"]
[Termination "VerdeNotte won by checkmate"]

1. a3 {[%clk 0:03:01.9]} 1... e5 {[%clk 0:02:56.1]} 2. c4 {[%clk 0:03:02.5]}
2... a5 {[%clk 0:02:53.9]} 3. Nc3 {[%clk 0:02:59.4]} 3... Nc6 {[%clk 0:02:52.9]}
4. Nf3 {[%clk 0:02:58.9]} 4... Nf6 {[%clk 0:02:53.8]} 5. g3 {[%clk 0:02:57.6]}
5... Bc5 {[%clk 0:02:47.1]} 6. Bg2 {[%clk 0:02:58.3]} 6... d6 {[%clk 0:02:47.6]}
7. O-O {[%clk 0:02:58.7]} 7... O-O {[%clk 0:02:48.7]} 8. e3 {[%clk 0:02:48]}
8... Bg4 {[%clk 0:02:47.7]} 9. h3 {[%clk 0:02:48.9]} 9... Bh5 {[%clk 0:02:48.8]}
10. g4 {[%clk 0:02:48.5]} 10... Bg6 {[%clk 0:02:50]} 11. d4 {[%clk 0:02:49.8]}
11... exd4 {[%clk 0:02:49.5]} 12. exd4 {[%clk 0:02:50.4]} 12... Ba7 {[%clk
0:02:42.3]} 13. Bg5 {[%clk 0:02:51.4]} 13... h6 {[%clk 0:02:33]} 14. Bh4 {[%clk
0:02:51.4]} 14... Bh7 {[%clk 0:02:34]} 15. Qd2 {[%clk 0:02:36.4]} 15... Kh8
{[%clk 0:01:13]} 16. Nd5 {[%clk 0:02:25.7]} 16... g5 {[%clk 0:01:13.7]} 17. Nxg5
{[%clk 0:02:26.4]} 17... hxg5 {[%clk 0:00:57.1]} 18. Bxg5 {[%clk 0:02:28.3]}
18... Bxd4 {[%clk 0:00:57.7]} 19. Qxd4 {[%clk 0:02:27.6]} 19... Nxd4 {[%clk
0:00:56]} 20. Bxf6+ {[%clk 0:02:28.9]} 20... Qxf6 {[%clk 0:00:56.9]} 21. Nxf6
{[%clk 0:02:30.8]} 21... Bd3 {[%clk 0:00:53.1]} 22. Rfd1 {[%clk 0:02:09.5]}
22... Ne2+ {[%clk 0:00:53.8]} 23. Kh2 {[%clk 0:02:10.3]} 23... Bxc4 {[%clk
0:00:54.2]} 24. Bxb7 {[%clk 0:02:10.2]} 24... Ra7 {[%clk 0:00:51.4]} 25. Bd5
{[%clk 0:02:07.5]} 25... Bxd5 {[%clk 0:00:40.6]} 26. Rxd5 {[%clk 0:02:08.1]}
26... Nf4 {[%clk 0:00:41.8]} 27. Rg5 {[%clk 0:02:06.1]} 27... Rb7 {[%clk
0:00:32.1]} 28. Rb1 {[%clk 0:01:55.3]} 28... Rb3 {[%clk 0:00:32.5]} 29. Rf5
{[%clk 0:01:49.6]} 29... Rxh3+ {[%clk 0:00:31.4]} 30. Kg1 {[%clk 0:01:50.8]}
30... Ng6 {[%clk 0:00:30.2]} 31. Kg2 {[%clk 0:01:51.8]} 31... Rh4 {[%clk
0:00:28.2]} 32. Kg3 {[%clk 0:01:50.9]} 32... Rb8 {[%clk 0:00:28.7]} 33. b4
{[%clk 0:01:48.3]} 33... axb4 {[%clk 0:00:30.6]} 34. Rxb4 {[%clk 0:01:46.8]}
34... Rxb4 {[%clk 0:00:31.1]} 35. axb4 {[%clk 0:01:48.7]} 35... Kg7 {[%clk
0:00:29.1]} 36. Nh5+ {[%clk 0:01:48.8]} 36... Kg8 {[%clk 0:00:26.8]} 37. Nf6+
{[%clk 0:01:43.7]} 37... Kg7 {[%clk 0:00:27.6]} 38. Ne8+ {[%clk 0:01:44.7]}
38... Kf8 {[%clk 0:00:20.7]} 39. Nxc7 {[%clk 0:01:45.7]} 39... Rh1 {[%clk
0:00:21.5]} 40. f3 {[%clk 0:01:33.9]} 40... Rb1 {[%clk 0:00:22.4]} 41. b5 {[%clk
0:01:34.3]} 41... Ne5 {[%clk 0:00:23.4]} 42. g5 {[%clk 0:01:29.4]} 42... Kg7
{[%clk 0:00:21.6]} 43. Ne8+ {[%clk 0:01:23.4]} 43... Kg6 {[%clk 0:00:19.5]} 44.
Rf6+ {[%clk 0:01:22.7]} 44... Kxg5 {[%clk 0:00:18.8]} 45. f4+ {[%clk 0:01:23.7]}
45... Kh5 {[%clk 0:00:20]} 46. Ng7# {[%clk 0:01:25.1]} 1-0

[Event "*** Titled Tuesday Blitz"]
[Site "Chess.com"]
[Date "2019.02.05"]
[Round "4"]
[White "matiss90"]
[Black "hurricane7791"]
[Result "0-1"]
[WhiteElo "2468"]
[BlackElo "2678"]
[TimeControl "180+2"]
[EndTime "13:49:20 PST"]
[Termination "hurricane7791 won by resignation"]

1. e4 {[%clk 0:03:01.9]} 1... c5 {[%clk 0:02:58.6]} 2. Nf3 {[%clk 0:03:03.1]}
2... d6 {[%clk 0:02:59.4]} 3. d4 {[%clk 0:03:04.4]} 3... cxd4 {[%clk 0:03:01.3]}
4. Nxd4 {[%clk 0:03:06.2]} 4... Nf6 {[%clk 0:03:02.5]} 5. Nc3 {[%clk 0:03:07.7]}
5... a6 {[%clk 0:03:04]} 6. Bc4 {[%clk 0:03:08.9]} 6... e6 {[%clk 0:03:04.9]} 7.
Bb3 {[%clk 0:03:10.2]} 7... b5 {[%clk 0:03:05.5]} 8. O-O {[%clk 0:03:10.9]} 8...
Qc7 {[%clk 0:03:03.9]} 9. Re1 {[%clk 0:02:55.4]} 9... Be7 {[%clk 0:03:04.9]} 10.
Qf3 {[%clk 0:02:38.7]} 10... O-O {[%clk 0:03:02.6]} 11. a3 {[%clk 0:02:39.6]}
11... Nc6 {[%clk 0:03:00.3]} 12. Nxc6 {[%clk 0:02:32.3]} 12... Qxc6 {[%clk
0:03:02.2]} 13. Bg5 {[%clk 0:02:31]} 13... Bb7 {[%clk 0:03:00.3]} 14. Rad1
{[%clk 0:02:30.3]} 14... Qc5 {[%clk 0:02:58.5]} 15. Be3 {[%clk 0:02:26.4]} 15...
Qc7 {[%clk 0:02:58.4]} 16. Bd4 {[%clk 0:02:25.4]} 16... Rac8 {[%clk 0:02:57.9]}
17. Qd3 {[%clk 0:01:58.3]} 17... Kh8 {[%clk 0:02:51.9]} 18. f3 {[%clk
0:01:53.6]} 18... Nd7 {[%clk 0:02:52.6]} 19. Qe2 {[%clk 0:01:52.9]} 19... Ne5
{[%clk 0:02:47.7]} 20. f4 {[%clk 0:01:38.1]} 20... Nc4 {[%clk 0:02:48.4]} 21.
Rd3 {[%clk 0:01:36]} 21... e5 {[%clk 0:02:40.8]} 22. fxe5 {[%clk 0:01:11.7]}
22... dxe5 {[%clk 0:02:42.7]} 23. Bf2 {[%clk 0:01:12.5]} 23... Bc5 {[%clk
0:02:24.6]} 24. Bxc4 {[%clk 0:01:13.2]} 24... Bxf2+ {[%clk 0:02:20.1]} 25. Qxf2
{[%clk 0:01:13.6]} 25... Qxc4 {[%clk 0:02:22]} 26. Rh3 {[%clk 0:01:03.4]} 26...
a5 {[%clk 0:02:13]} 27. Ree3 {[%clk 0:00:48.8]} 27... b4 {[%clk 0:02:07.2]} 28.
Qh4 {[%clk 0:00:33.7]} 28... h6 {[%clk 0:02:08]} 29. Reg3 {[%clk 0:00:34.7]}
29... Qe6 {[%clk 0:02:01.8]} 30. Nd5 {[%clk 0:00:28.7]} 30... Bxd5 {[%clk
0:02:02.5]} 31. exd5 {[%clk 0:00:29.3]} 31... Qd6 {[%clk 0:02:03.6]} 32. Qe4
{[%clk 0:00:21.6]} 32... f5 {[%clk 0:02:02.3]} 33. Qd3 {[%clk 0:00:21.1]} 33...
e4 {[%clk 0:01:58.2]} 34. Qd4 {[%clk 0:00:17.6]} 34... Rf7 {[%clk 0:01:46.6]}
35. axb4 {[%clk 0:00:18.3]} 35... axb4 {[%clk 0:01:47.3]} 36. c4 {[%clk
0:00:19.4]} 36... bxc3 {[%clk 0:01:40]} 37. bxc3 {[%clk 0:00:20.2]} 37... Kh7
{[%clk 0:01:38.3]} 38. Rh5 {[%clk 0:00:13.2]} 38... Qc5 {[%clk 0:01:37.2]} 39.
Qxc5 {[%clk 0:00:06.4]} 39... Rxc5 {[%clk 0:01:39.1]} 40. d6 {[%clk 0:00:06.6]}
40... Rd5 {[%clk 0:01:39.4]} 41. Rgg5 {[%clk 0:00:04.6]} 41... g6 {[%clk
0:01:38.6]} 42. g4 {[%clk 0:00:05.6]} 42... gxh5 {[%clk 0:01:39]} 43. Rxh5
{[%clk 0:00:06.3]} 43... Rxd6 {[%clk 0:01:39.4]} 44. gxf5 {[%clk 0:00:06.7]}
44... Rd5 {[%clk 0:01:40]} 45. c4 {[%clk 0:00:07.1]} 45... Rdxf5 {[%clk
0:01:40.6]} 0-1

[Event "*** Titled Tuesday Blitz"]
[Site "Chess.com"]
[Date "2019.02.05"]
[Round "4"]
[White "sandager"]
[Black "Kawhi_Leonard2"]
[Result "0-1"]
[WhiteElo "2127"]
[BlackElo "2241"]
[TimeControl "180+2"]
[EndTime "13:49:20 PST"]
[Termination "Kawhi_Leonard2 won on time"]

1. e4 {[%clk 0:03:00.6]} 1... c5 {[%clk 0:03:00.4]} 2. Nf3 {[%clk 0:03:01.2]}
2... d6 {[%clk 0:03:00.6]} 3. d4 {[%clk 0:03:02.6]} 3... cxd4 {[%clk 0:03:00.4]}
4. Nxd4 {[%clk 0:03:03.9]} 4... Nf6 {[%clk 0:03:00.7]} 5. Nc3 {[%clk 0:03:05.1]}
5... g6 {[%clk 0:03:01.7]} 6. Be3 {[%clk 0:03:05.5]} 6... Bg7 {[%clk 0:03:02.8]}
7. Be2 {[%clk 0:03:06.9]} 7... Nc6 {[%clk 0:03:03.1]} 8. O-O {[%clk 0:03:07.9]}
8... O-O {[%clk 0:03:04.7]} 9. Nb3 {[%clk 0:03:08.2]} 9... Be6 {[%clk
0:03:04.1]} 10. f4 {[%clk 0:03:08.9]} 10... Qc8 {[%clk 0:03:05.1]} 11. Bf3
{[%clk 0:03:09.3]} 11... Bg4 {[%clk 0:02:56.1]} 12. h3 {[%clk 0:02:55.6]} 12...
Bxf3 {[%clk 0:02:56.3]} 13. Qxf3 {[%clk 0:02:56.1]} 13... a6 {[%clk 0:02:32.6]}
14. a4 {[%clk 0:02:54.6]} 14... Nb4 {[%clk 0:02:31.2]} 15. Rf2 {[%clk
0:02:52.8]} 15... Qc4 {[%clk 0:02:27.5]} 16. Nd2 {[%clk 0:02:31.7]} 16... Qc6
{[%clk 0:02:21.1]} 17. Nb3 {[%clk 0:02:26.4]} 17... Rac8 {[%clk 0:02:12.5]} 18.
Rd1 {[%clk 0:02:17.9]} 18... e6 {[%clk 0:02:00.1]} 19. Rfd2 {[%clk 0:02:11.9]}
19... Rfd8 {[%clk 0:02:00.1]} 20. a5 {[%clk 0:02:10.7]} 20... Qc4 {[%clk
0:01:57.9]} 21. Nd4 {[%clk 0:01:29.9]} 21... e5 {[%clk 0:01:53.4]} 22. Nde2
{[%clk 0:01:28.5]} 22... Re8 {[%clk 0:01:29.8]} 23. b3 {[%clk 0:01:13.6]} 23...
Qc7 {[%clk 0:01:25]} 24. Bb6 {[%clk 0:01:03.7]} 24... Qe7 {[%clk 0:01:21]} 25.
f5 {[%clk 0:00:32.4]} 25... d5 {[%clk 0:01:21.9]} 26. fxg6 {[%clk 0:00:23.4]}
26... hxg6 {[%clk 0:01:22.3]} 27. Nxd5 {[%clk 0:00:21.4]} 27... Nfxd5 {[%clk
0:01:17.6]} 28. exd5 {[%clk 0:00:22]} 28... e4 {[%clk 0:01:18.3]} 29. Qg3 {[%clk
0:00:10.6]} 29... Nxc2 {[%clk 0:01:06.9]} 30. d6 {[%clk 0:00:11.1]} 30... Qd7
{[%clk 0:01:07.3]} 31. Nf4 {[%clk 0:00:09.6]} 31... e3 {[%clk 0:00:58.9]} 32.
Re2 {[%clk 0:00:08.3]} 32... Rc6 {[%clk 0:00:53.4]} 33. Nd3 {[%clk 0:00:04.9]}
33... Rxd6 {[%clk 0:00:50.3]} 34. Rxc2 {[%clk 0:00:02.8]} 34... Rxd3 {[%clk
0:00:51]} 35. Rxd3 {[%clk 0:00:03.2]} 35... Qxd3 {[%clk 0:00:52]} 0-1